fUST/lending_fUST_20250909
["ID","MTS","AMOUNT","RATE_DAILY","PERIOD"]
[384408011,1757387441801,-483.28932409,0.00013698,2]
[384408013,1757387441810,-494.12119013,0.00013698,2]
[384408015,1757387441819,-483.65736576,0.00013698,2]
[384408017,1757387441828,-482.54786845,0.00013698,2]
[384408019,1757387441838,-482.10485694,0.00013698,2]
[384408021,1757387441847,-486.9194041,0.00013698,2]
[384408023,1757387441856,-480.0,0.00013698,2]
[384408025,1757387441865,-482.09967061,0.00013698,2]
[384408027,1757387441874,-483.92633891,0.00013698,2]
[384408029,1757387441883,-484.80547237,0.00013698,2]
[384408031,1757387441892,-488.49222357,0.00013698,2]
[384408033,1757387441901,-488.58015089,0.00013698,2]
[384408034,1757387441910,-598.11221727,0.00013698,2]
[384408036,1757387441920,-484.06581446,0.00013698,2]
[384408038,1757387441929,-491.31268156,0.00013698,2]
[384408040,1757387441938,-484.79206566,0.00013698,2]
[384408042,1757387441947,-486.85317792,0.00013698,2]
[384408044,1757387441957,-483.98560102,0.00013698,2]
[384408046,1757387441966,-487.19788777,0.00013698,2]
[384408048,1757387441976,-483.49013081,0.00013698,2]
[384408050,1757387441985,-627.34953314,0.00013698,2]
[384408052,1757387441995,-482.33567945,0.00013698,2]
[384408054,1757387442005,-482.49653653,0.00013698,2]
[384408056,1757387442014,-496.44996399,0.00013698,2]
[384408058,1757387442024,-490.23451119,0.00013698,2]
[384408060,1757387442034,-481.72296087,0.00013698,2]
[384408062,1757387442045,-489.38274467,0.00013698,2]
[384408064,1757387442056,-482.0920632,0.00013698,2]
[384408066,1757387442066,-492.72334739,0.00013698,2]
[384408068,1757387442077,-484.96950444,0.00013698,2]
[384408070,1757387442086,-480.0,0.00013698,2]
[384408072,1757387442096,-484.63116995,0.00013698,2]
[384408074,1757387442106,-483.30120986,0.00013698,2]
[384408076,1757387442115,-486.81527131,0.00013698,2]
[384408078,1757387442125,-486.14847043,0.00013698,2]
[384408080,1757387442134,-480.0,0.00013698,2]
[384408082,1757387442144,-480.0,0.00013698,2]
[384408084,1757387442154,-570.01683784,0.00013698,2]
[384408086,1757387442163,-1014.70294424,0.00013698,2]
[384408088,1757387442173,-489.35930241,0.00013698,2]
[384408091,1757387442184,-482.55683509,0.00013698,2]
[384408092,1757387442193,-484.03809447,0.00013698,2]
[384408094,1757387442202,-480.0,0.00013698,2]
[384408097,1757387442212,-482.50291962,0.00013698,2]
[384408099,1757387442222,-484.06399279,0.00013698,2]
[384408100,1757387442232,-483.22866561,0.00013698,2]
[384408102,1757387442241,-538.68076664,0.00013698,2]
[384408104,1757387442251,-483.3894816,0.00013698,2]
[384408106,1757387442260,-483.84231895,0.00013698,2]
[384408108,1757387442270,-480.0,0.00013698,2]
[384408110,1757387442279,-361.37628663,0.00013698,2]
[384408112,1757387442289,-480.0,0.00013698,2]
[384408114,1757387442299,-482.80153796,0.00013698,2]
[384408116,1757387442308,-481.95445258,0.00013698,2]
[384408118,1757387442317,-484.03093063,0.00013698,2]
[384408120,1757387442326,-485.47088856,0.00013698,2]
[384408122,1757387442336,-480.0,0.00013698,2]
[384408125,1757387442349,-480.0,0.00013698,2]
[384408127,1757387442359,-484.02271583,0.00013698,2]
[384408129,1757387442368,-549.89192238,0.00013698,2]
[384408131,1757387442377,-487.46267025,0.00013698,2]
[384408133,1757387442387,-482.40725962,0.00013698,2]
[384408135,1757387442396,-480.0,0.00013698,2]
[384408137,1757387442406,-482.63704211,0.00013698,2]
[384408139,1757387442415,-480.0,0.00013698,2]
[384408141,1757387442425,-480.0,0.00013698,2]
[384408143,1757387442434,-483.7080424,0.00013698,2]
[384408145,1757387442443,-482.31260379,0.00013698,2]
[384408147,1757387442452,-485.82683563,0.00013698,2]
[384408149,1757387442462,-484.82198139,0.00013698,2]
[384408151,1757387442470,-480.0,0.00013698,2]
[384408153,1757387442479,-480.0,0.00013698,2]
[384408155,1757387442489,-619.66,0.00013698,2]
[384408157,1757387442498,-481.95998631,0.00013698,2]
[384408159,1757387442507,-482.94518077,0.00013698,2]
[384408161,1757387442516,-255.89078452,0.00013698,2]
[384408162,1757387442526,-200.30761394,0.00013698,2]
[384408164,1757387442535,-484.77017467,0.00013698,2]
[384408166,1757387442545,-422.3760856,0.00013698,2]
[384408169,1757387442556,-480.0,0.00013698,2]
[384408171,1757387442566,-482.77272482,0.00013698,2]
[384408173,1757387442575,-528.05581543,0.00013698,2]
[384408175,1757387442585,-681.34,0.00013698,2]
[384408177,1757387442594,-482.94405726,0.00013698,2]
[384408179,1757387442603,-480.0,0.00013698,2]
[384408181,1757387442613,-483.11789433,0.00013698,2]
[384408183,1757387442622,-480.0,0.00013698,2]
[384408185,1757387442632,-549.05,0.00013698,2]
[384408187,1757387442641,-482.27153912,0.00013698,2]
[384408189,1757387442650,-480.0,0.00013698,2]
[384408190,1757387442662,-500.0,0.00013698,2]
[384408192,1757387442672,-500.0,0.00013698,2]
[384408194,1757387442682,-500.0,0.00013698,2]
[384408196,1757387442691,-500.0,0.00013698,2]
[384408198,1757387442702,-500.0,0.00013698,2]
[384408200,1757387442711,-500.0,0.00013698,2]
[384408202,1757387442721,-537.44165014,0.00013698,2]
[384408204,1757387442730,-480.0,0.00013698,2]
[384408206,1757387442740,-480.0,0.00013698,2]
[384408208,1757387442749,-486.09138238,0.00013698,2]
[384408210,1757387442759,-483.01136861,0.00013698,2]
[384408212,1757387442769,-480.0,0.00013698,2]
[384408214,1757387442779,-480.0,0.00013698,2]
[384408217,1757387442789,-480.0,0.00013698,2]
[384408220,1757387442798,-500.53907778,0.00013698,2]
[384408223,1757387442808,-481.96861724,0.00013698,2]
[384408226,1757387442817,-480.0,0.00013698,2]
[384408229,1757387442827,-482.12983674,0.00013698,2]
[384408231,1757387442836,-480.0,0.00013698,2]
[384408234,1757387442846,-481.74794304,0.00013698,2]
[384408237,1757387442856,-703.0,0.00013698,2]
[384408239,1757387442865,-484.6194905,0.00013698,2]
[384408241,1757387442875,-480.0,0.00013698,2]
[384408243,1757387442884,-151.0,0.00013698,2]
[384408245,1757387442893,-151.0,0.00013698,2]
[384408247,1757387442903,-483.95690261,0.00013698,2]
[384408249,1757387442912,-151.0,0.00013698,2]
[384408251,1757387442921,-482.63904112,0.00013698,2]
[384408253,1757387442930,-480.0,0.00013698,2]
[384408255,1757387442940,-480.0,0.00013698,2]
[384408257,1757387442949,-151.0,0.00013698,2]
[384408259,1757387442959,-173.367995,0.00013698,2]
[384408261,1757387442968,-480.0,0.00013698,2]
[384408263,1757387442977,-488.44096721,0.00013698,2]
[384408265,1757387442987,-480.0,0.00013698,2]
[384408267,1757387442996,-480.0,0.00013698,2]
[384408269,1757387443006,-480.0,0.00013698,2]
[384408271,1757387443015,-463.10258849,0.00013698,2]
[384408273,1757387443025,-163.73518695,0.00013698,2]
[384408275,1757387443034,-309.6505494,0.00013698,2]
[384408277,1757387443044,-483.27753945,0.00013698,2]
[384408279,1757387443053,-487.46864677,0.00013698,2]
[384408281,1757387443063,-486.63788918,0.00013698,2]
[384408283,1757387443072,-481.93883006,0.00013698,2]
[384408285,1757387443082,-482.10416375,0.00013698,2]
[384408287,1757387443091,-480.0,0.00013698,2]
[384408289,1757387443101,-484.84426219,0.00013698,2]
[384408291,1757387443112,-480.0,0.00013698,2]
[384408293,1757387443121,-480.43209738,0.00013698,2]
[384408295,1757387443131,-489.55160594,0.00013698,2]
[384408297,1757387443140,-480.0,0.00013698,2]
[384408299,1757387443150,-480.0,0.00013698,2]
[384408301,1757387443159,-465.47891363,0.00013698,2]
[384408303,1757387443169,-480.0,0.00013698,2]
[384408305,1757387443178,-480.0,0.00013698,2]
[384408307,1757387443188,-480.0,0.00013698,2]
[384408309,1757387443198,-480.0,0.00013698,2]
[384408311,1757387443208,-480.0,0.00013698,2]
[384408313,1757387443218,-433.04446702,0.00013698,2]
[384408315,1757387443227,-482.66532716,0.00013698,2]
[384408317,1757387443236,-480.0,0.00013698,2]
[384408319,1757387443245,-480.0,0.00013698,2]
[384408321,1757387443255,-501.35900831,0.00013698,2]
[384408323,1757387443264,-480.0,0.00013698,2]
[384408325,1757387443274,-480.0,0.00013698,2]
[384408327,1757387443283,-480.0,0.00013698,2]
[384408329,1757387443293,-482.49412254,0.00013698,2]
[384408331,1757387443302,-485.28783581,0.00013698,2]
[384408333,1757387443312,-480.0,0.00013698,2]
[384408335,1757387443322,-482.3267889,0.00013698,2]
[384408336,1757387443331,-482.5861,0.00013698,2]
[384408338,1757387443341,-326.46452127,0.00013698,2]
[384408340,1757387443350,-482.0073936,0.00013698,2]
[384408342,1757387443359,-482.91777393,0.00013698,2]
[384408344,1757387443369,-539.19,0.00013698,2]
[384408346,1757387443378,-480.0,0.00013698,2]
[384408348,1757387443388,-480.0,0.00013698,2]
[384408350,1757387443397,-480.0,0.00013698,2]
[384408352,1757387443407,-480.0,0.00013698,2]
[384408354,1757387443417,-484.95347356,0.00013698,2]
[384408356,1757387443427,-480.0,0.00013698,2]
[384408358,1757387443437,-487.8783508,0.00013698,2]
[384408360,1757387443446,-480.0,0.00013698,2]
[384408362,1757387443456,-480.0,0.00013698,2]
[384408364,1757387443466,-489.63130522,0.00013698,2]
[384408366,1757387443475,-480.0,0.00013698,2]
[384408368,1757387443485,-480.0,0.00013698,2]
[384408370,1757387443494,-486.51790643,0.00013698,2]
[384408372,1757387443503,-480.0,0.00013698,2]
[384408374,1757387443513,-580.88,0.00013698,2]
[384408376,1757387443522,-483.03910551,0.00013698,2]
[384408378,1757387443531,-486.53341173,0.00013698,2]
[384408380,1757387443540,-480.0,0.00013698,2]
[384408382,1757387443549,-480.0,0.00013698,2]
[384408384,1757387443558,-482.44746094,0.00013698,2]
[384408386,1757387443567,-480.0,0.00013698,2]
[384408388,1757387443576,-480.0,0.00013698,2]
[384408389,1757387443585,-481.94849287,0.00013698,2]
[384408391,1757387443594,-480.0,0.00013698,2]
[384408393,1757387443604,-480.0,0.00013698,2]
[384408395,1757387443614,-480.0,0.00013698,2]
[384408397,1757387443623,-480.0,0.00013698,2]
[384408399,1757387443632,-482.27839663,0.00013698,2]
[384408401,1757387443641,-485.50345511,0.00013698,2]
[384408403,1757387443650,-480.0,0.00013698,2]
[384408405,1757387443662,-480.0,0.00013698,2]
[384408407,1757387443671,-475.78448864,0.00013698,2]
[384408409,1757387443682,-480.0,0.00013698,2]
[384408411,1757387443691,-489.87089073,0.00013698,2]
[384408412,1757387443702,-480.0,0.00013698,2]
[384408414,1757387443711,-484.5452615,0.00013698,2]
[384408416,1757387443720,-480.0,0.00013698,2]
[384408418,1757387443731,-485.57307372,0.00013698,2]
[384408420,1757387443740,-383.31870748,0.00013698,2]
[384408422,1757387443749,-483.7641558,0.00013698,2]
[384408424,1757387443759,-480.0,0.00013698,2]
[384408426,1757387443768,-480.0,0.00013698,2]
[384408428,1757387443778,-482.46105402,0.00013698,2]
[384408430,1757387443787,-480.0,0.00013698,2]
[384408431,1757387443796,-483.01380744,0.00013698,2]
[384408433,1757387443806,-480.0,0.00013698,2]
[384408435,1757387443815,-480.0,0.00013698,2]
[384408437,1757387443825,-480.0,0.00013698,2]
[384408439,1757387443833,-485.32755929,0.00013698,2]
[384408441,1757387443842,-484.33505067,0.00013698,2]
[384408443,1757387443852,-480.0,0.00013698,2]
[384408445,1757387443861,-480.0,0.00013698,2]
[384408447,1757387443870,-534.55,0.00013698,2]
[384408449,1757387443880,-486.49,0.00013698,2]
[384408451,1757387443889,-480.0,0.00013698,2]
[384408453,1757387443899,-357.33783804,0.00013698,2]
[384408455,1757387443908,-489.61290006,0.00013698,2]
[384408457,1757387443917,-480.0,0.00013698,2]
[384408459,1757387443926,-480.0,0.00013698,2]
[384408461,1757387443935,-480.0,0.00013698,2]
[384408462,1757387443944,-480.0,0.00013698,2]
[384408464,1757387443953,-483.39654905,0.00013698,2]
[384408466,1757387443962,-480.0,0.00013698,2]
[384408468,1757387443971,-480.0,0.00013698,2]
[384408470,1757387443981,-480.0,0.00013698,2]
[384408472,1757387443990,-480.0,0.00013698,2]
[384408474,1757387444000,-480.0,0.00013698,2]
[384408476,1757387444009,-491.97735452,0.00013698,2]
[384408478,1757387444018,-480.0,0.00013698,2]
[384408480,1757387444027,-482.60641857,0.00013698,2]
[384408481,1757387444037,-289.39703927,0.00013698,2]
[384408483,1757387444047,-480.0,0.00013698,2]
[384408485,1757387444056,-480.0,0.00013698,2]
[384408487,1757387444065,-480.0,0.00013698,2]
[384408489,1757387444075,-480.0,0.00013698,2]
[384408491,1757387444084,-1000.0,0.00013698,2]
[384408493,1757387444093,-1000.0,0.00013698,2]
[384408495,1757387444103,-1000.0,0.00013698,2]
[384408497,1757387444113,-1000.0,0.00013698,2]
[384408499,1757387444122,-1018.93188068,0.00013698,2]
[384408501,1757387444132,-480.0,0.00013698,2]
[384408503,1757387444142,-480.0,0.00013698,2]
[384408505,1757387444151,-480.0,0.00013698,2]
[384408507,1757387444160,-480.0,0.00013698,2]
[384408509,1757387444169,-489.26997838,0.00013698,2]
[384408511,1757387444178,-484.08745227,0.00013698,2]
[384408513,1757387444188,-482.80788108,0.00013698,2]
[384408514,1757387444197,-480.0,0.00013698,2]
[384408516,1757387444207,-480.0,0.00013698,2]
[384408518,1757387444216,-480.0,0.00013698,2]
[384408520,1757387444226,-480.0,0.00013698,2]
[384408522,1757387444234,-480.0,0.00013698,2]
[384408524,1757387444244,-668.59,0.00013698,2]
[384408526,1757387444253,-480.0,0.00013698,2]
[384408528,1757387444262,-480.0,0.00013698,2]
[384408530,1757387444271,-488.1268235,0.00013698,2]
[384408532,1757387444280,-458.62316349,0.00013698,2]
[384408534,1757387444289,-480.0,0.00013698,2]
[384408536,1757387444298,-483.00612376,0.00013698,2]
[384408537,1757387444305,-483.47349055,0.00013698,2]
[384408539,1757387444313,-480.0,0.00013698,2]
[384408541,1757387444322,-480.0,0.00013698,2]
[384408543,1757387444331,-486.30975409,0.00013698,2]
[384408545,1757387444340,-482.61779957,0.00013698,2]
[384408547,1757387444350,-480.0,0.00013698,2]
[384408549,1757387444360,-480.0,0.00013698,2]
[384408553,1757387444489,-484.55848299,0.00013698,2]
[384408554,1757387444500,-483.02841117,0.00013698,2]
[384408555,1757387444510,-483.12774491,0.00013698,2]
[384408556,1757387444519,-480.0,0.00013698,2]
[384408557,1757387444530,-488.66441413,0.00013698,2]
[384408558,1757387444539,-480.0,0.00013698,2]
[384408559,1757387444548,-600.86658604,0.00013698,2]
[384408560,1757387444557,-485.51026699,0.00013698,2]
[384408561,1757387444567,-483.23194535,0.00013698,2]
[384408562,1757387444577,-480.0,0.00013698,2]
[384408563,1757387444588,-484.08847816,0.00013698,2]
[384408564,1757387444598,-480.0,0.00013698,2]
[384408565,1757387444607,-486.03279705,0.00013698,2]
[384408566,1757387444617,-480.0,0.00013698,2]
[384408567,1757387444626,-482.70203474,0.00013698,2]
[384408568,1757387444635,-486.38961834,0.00013698,2]
[384408569,1757387444643,-489.17870123,0.00013698,2]
[384408571,1757387444654,-480.0,0.00013698,2]
[384408573,1757387444668,-486.59698688,0.00013698,2]
[384408575,1757387444677,-485.03416015,0.00013698,2]
[384408577,1757387444687,-483.24793686,0.00013698,2]
[384408579,1757387444697,-480.0,0.00013698,2]
[384408581,1757387444707,-493.97466047,0.00013698,2]
[384408583,1757387444719,-485.72041524,0.00013698,2]
[384408585,1757387444728,-482.72145109,0.00013698,2]
[384408586,1757387444738,-487.39087611,0.00013698,2]
[384408588,1757387444747,-489.39816283,0.00013698,2]
[384408590,1757387444757,-227.3444717,0.00013698,2]
[384408592,1757387444766,-480.0,0.00013698,2]
[384408594,1757387444775,-2056.8,0.00013698,2]
[384408596,1757387444785,-373.48616033,0.00013698,2]
[384408598,1757387444795,-480.0,0.00013698,2]
[384408600,1757387444806,-486.77179033,0.00013698,2]
[384408602,1757387444815,-493.46126893,0.00013698,2]
[384408604,1757387444825,-398.80027783,0.00013698,2]
[384408606,1757387444835,-480.0,0.00013698,2]
[384408608,1757387444844,-491.69296522,0.00013698,2]
[384408610,1757387444854,-480.0,0.00013698,2]
[384408612,1757387444863,-484.39895296,0.00013698,2]
[384408614,1757387444873,-480.0,0.00013698,2]
[384408616,1757387444883,-484.31609714,0.00013698,2]
[384408618,1757387444892,-483.2680125,0.00013698,2]
[384408620,1757387444908,-488.12712704,0.00013698,2]
[384408622,1757387444918,-480.0,0.00013698,2]
[384408624,1757387444928,-480.0,0.00013698,2]
[384408625,1757387444937,-480.0,0.00013698,2]
[384408626,1757387444946,-480.0,0.00013698,2]
[384408627,1757387444955,-400.0,0.00013698,2]
[384408628,1757387444964,-481.57657347,0.00013698,2]
[384408629,1757387444973,-480.0,0.00013698,2]
[384408630,1757387444982,-480.0,0.00013698,2]
[384408631,1757387444991,-480.0,0.00013698,2]
[384408632,1757387444999,-480.0,0.00013698,2]
[384408633,1757387445009,-480.0,0.00013698,2]
[384408634,1757387445018,-480.0,0.00013698,2]
[384408635,1757387445027,-483.22985917,0.00013698,2]
[384408636,1757387445040,-480.0,0.00013698,2]
[384408637,1757387445062,-492.1758059,0.00013698,2]
[384408638,1757387445079,-483.54758844,0.00013698,2]
[384408639,1757387445090,-613.01,0.00013698,2]
[384408640,1757387445100,-174.883998,0.00013698,2]
[384408641,1757387445109,-480.0,0.00013698,2]
[384408642,1757387445118,-480.0,0.00013698,2]
[384408643,1757387445127,-513.44761188,0.00013698,2]
[384408644,1757387445137,-483.99356591,0.00013698,2]
[384408646,1757387445147,-706.6,0.00013698,2]
[384408648,1757387445156,-486.16179208,0.00013698,2]
[384408649,1757387445166,-482.89166486,0.00013698,2]
[384408651,1757387445175,-480.0,0.00013698,2]
[384408652,1757387445185,-1236.17,0.00013698,2]
[384408653,1757387445196,-570.91512047,0.00013698,2]
[384408654,1757387445205,-481.26534397,0.00013698,2]
[384408655,1757387445215,-733.73,0.00013698,2]
[384408656,1757387445225,-482.87922254,0.00013698,2]
[384408657,1757387445235,-151.0,0.00013698,2]
[384408658,1757387445244,-151.0,0.00013698,2]
[384408659,1757387445254,-151.0,0.00013698,2]
[384408660,1757387445263,-286.82436286,0.00013698,2]
[384408661,1757387445273,-188.45139476,0.00013698,2]
[384408662,1757387445284,-484.36561541,0.00013698,2]
[384408663,1757387445294,-482.16187925,0.00013698,2]
[384408664,1757387445304,-481.60946274,0.00013698,2]
[384408665,1757387445314,-151.0,0.00013698,2]
[384408666,1757387445324,-482.03189724,0.00013698,2]
[384408667,1757387445334,-151.0,0.00013698,2]
[384408668,1757387445344,-489.84591939,0.00013698,2]
[384408669,1757387445353,-151.0,0.00013698,2]
[384408670,1757387445363,-151.0,0.00013698,2]
[384408671,1757387445372,-151.0,0.00013698,2]
[384408672,1757387445382,-480.0,0.00013698,2]
[384408673,1757387445392,-151.0,0.00013698,2]
[384408674,1757387445401,-480.0,0.00013698,2]
[384408675,1757387445411,-480.0,0.00013698,2]
[384408676,1757387445421,-483.19955637,0.00013698,2]
[384408677,1757387445430,-301.631984,0.00013698,2]
[384408678,1757387445441,-482.53494933,0.00013698,2]
[384408679,1757387445450,-481.32776947,0.00013698,2]
[384408680,1757387445460,-480.0,0.00013698,2]
[384408681,1757387445469,-1212.37,0.00013698,2]
[384408682,1757387445479,-480.0,0.00013698,2]
[384408683,1757387445488,-480.0,0.00013698,2]
[384408684,1757387445498,-491.84,0.00013698,2]
[384408685,1757387445507,-485.66330291,0.00013698,2]
[384408686,1757387445517,-486.79009347,0.00013698,2]
[384408687,1757387445527,-1817.05,0.00013698,2]
[384408688,1757387445536,-743.24,0.00013698,2]
[384408689,1757387445546,-480.0,0.00013698,2]
[384408690,1757387445555,-563.983903,0.00013698,2]
[384408691,1757387445565,-563.983903,0.00013698,2]
[384408692,1757387445574,-300.687262,0.00013698,2]
[384408693,1757387445584,-563.983903,0.00013698,2]
[384408694,1757387445594,-300.687262,0.00013698,2]
[384408695,1757387445603,-485.09664892,0.00013698,2]
[384408696,1757387445612,-300.687262,0.00013698,2]
[384408697,1757387445622,-300.687262,0.00013698,2]
[384408698,1757387445631,-563.983903,0.00013698,2]
[384408699,1757387445642,-300.687262,0.00013698,2]
[384408700,1757387445652,-480.0,0.00013698,2]
[384408701,1757387445665,-563.983903,0.00013698,2]
[384408702,1757387445675,-300.687262,0.00013698,2]
[384408703,1757387445686,-563.983903,0.00013698,2]
[384408704,1757387445695,-480.0,0.00013698,2]
[384408705,1757387445705,-151.0,0.00013698,2]
[384408706,1757387445714,-300.687262,0.00013698,2]
[384408707,1757387445724,-151.0,0.00013698,2]
[384408708,1757387445735,-300.687262,0.00013698,2]
[384408709,1757387445745,-563.983903,0.00013698,2]
[384408710,1757387445755,-151.0,0.00013698,2]
[384408711,1757387445764,-300.687262,0.00013698,2]
[384408712,1757387445774,-563.983903,0.00013698,2]
[384408713,1757387445784,-563.983903,0.00013698,2]
[384408714,1757387445795,-480.0,0.00013698,2]
[384408715,1757387445805,-480.69191435,0.00013698,2]
[384408716,1757387445815,-151.0,0.00013698,2]
[384408717,1757387445825,-300.687262,0.00013698,2]
[384408718,1757387445835,-300.687262,0.00013698,2]
[384408719,1757387445845,-151.0,0.00013698,2]
[384408720,1757387445855,-563.983903,0.00013698,2]
[384408721,1757387445864,-300.687257,0.00013698,2]
[384408722,1757387445874,-151.0,0.00013698,2]
[384408723,1757387445883,-563.983903,0.00013698,2]
[384408724,1757387445893,-288.77699689,0.00013698,2]
[384408725,1757387445902,-289.72900045,0.00013698,2]
[384408726,1757387445911,-563.983895,0.00013698,2]
[384408727,1757387445921,-480.0,0.00013698,2]
[384408728,1757387445930,-151.0,0.00013698,2]
[384408729,1757387445941,-151.0,0.00013698,2]
[384408730,1757387445951,-151.0,0.00013698,2]
[384408731,1757387445960,-482.17706614,0.00013698,2]
[384408732,1757387445970,-480.0,0.00013698,2]
[384408733,1757387445979,-151.0,0.00013698,2]
[384408734,1757387445988,-151.0,0.00013698,2]
[384408735,1757387445998,-480.0,0.00013698,2]
[384408736,1757387446010,-480.0,0.00013698,2]
[384408737,1757387446019,-156.297866,0.00013698,2]
[384408738,1757387446029,-483.16448451,0.00013698,2]
[384408739,1757387446039,-480.0,0.00013698,2]
[384408740,1757387446049,-480.0,0.00013698,2]
[384408741,1757387446058,-480.84620274,0.00013698,2]
[384408742,1757387446067,-480.0,0.00013698,2]
[384408743,1757387446077,-774.52,0.00013698,2]
[384408744,1757387446087,-809.05,0.00013698,2]
[384408745,1757387446096,-481.28277859,0.00013698,2]
[384408746,1757387446106,-480.0,0.00013698,2]
[384408747,1757387446115,-480.58704191,0.00013698,2]
[384408748,1757387446124,-348.35983084,0.00013698,2]
[384408749,1757387446135,-1123.768703,0.00013698,2]
[384408751,1757387446144,-486.67920616,0.00013698,2]
[384408753,1757387446154,-1123.768703,0.00013698,2]
[384408755,1757387446164,-1123.768703,0.00013698,2]
[384408756,1757387446173,-480.0,0.00013698,2]
[384408757,1757387446182,-480.0,0.00013698,2]
[384408758,1757387446192,-1123.768703,0.00013698,2]
[384408759,1757387446202,-1123.768703,0.00013698,2]
[384408760,1757387446211,-1123.768703,0.00013698,2]
[384408761,1757387446221,-920.6,0.00013698,2]
[384408762,1757387446231,-1123.768703,0.00013698,2]
[384408763,1757387446240,-1123.768703,0.00013698,2]
[384408764,1757387446250,-1123.768703,0.00013698,2]
[384408765,1757387446260,-480.0,0.00013698,2]
[384408766,1757387446269,-1123.768703,0.00013698,2]
[384408767,1757387446279,-484.19181408,0.00013698,2]
[384408768,1757387446288,-1123.768703,0.00013698,2]
[384408769,1757387446298,-1123.768697,0.00013698,2]
[384408770,1757387446308,-480.0,0.00013698,2]
[384408771,1757387446317,-480.0,0.00013698,2]
[384408772,1757387446327,-481.15169618,0.00013698,2]
[384408773,1757387446338,-483.80790252,0.00013698,2]
[384408774,1757387446348,-151.0,0.00013698,2]
[384408775,1757387446357,-151.0,0.00013698,2]
[384408776,1757387446366,-417.11450283,0.00013698,2]
[384408777,1757387446376,-151.0,0.00013698,2]
[384408778,1757387446387,-480.0,0.00013698,2]
[384408779,1757387446397,-151.0,0.00013698,2]
[384408780,1757387446407,-480.0,0.00013698,2]
[384408781,1757387446416,-151.0,0.00013698,2]
[384408782,1757387446426,-480.0,0.00013698,2]
[384408783,1757387446435,-158.383373,0.00013698,2]
[384408784,1757387446445,-480.0,0.00013698,2]
[384408785,1757387446454,-710.23,0.00013698,2]
[384408786,1757387446464,-480.0,0.00013698,2]
[384408787,1757387446474,-343.636316,0.00013698,2]
[384408788,1757387446483,-343.636316,0.00013698,2]
[384408789,1757387446493,-480.0,0.00013698,2]
[384408790,1757387446502,-343.636316,0.00013698,2]
[384408791,1757387446512,-343.636316,0.00013698,2]
[384408792,1757387446522,-343.636316,0.00013698,2]
[384408793,1757387446531,-343.636316,0.00013698,2]
[384408794,1757387446541,-480.0,0.00013698,2]
[384408795,1757387446551,-343.636316,0.00013698,2]
[384408796,1757387446560,-343.636316,0.00013698,2]
[384408797,1757387446570,-280.173572,0.00013698,2]
[384408798,1757387446579,-343.636316,0.00013698,2]
[384408799,1757387446589,-280.173572,0.00013698,2]
[384408800,1757387446598,-280.173572,0.00013698,2]
[384408801,1757387446608,-480.0,0.00013698,2]
[384408802,1757387446618,-343.636316,0.00013698,2]
[384408803,1757387446627,-343.636316,0.00013698,2]
[384408804,1757387446636,-280.173572,0.00013698,2]
[384408805,1757387446646,-343.636321,0.00013698,2]
[384408806,1757387446656,-280.173572,0.00013698,2]
[384408807,1757387446669,-280.173572,0.00013698,2]
[384408808,1757387446678,-480.0,0.00013698,2]
[384408809,1757387446689,-8455.28,0.00013698,2]
[384408810,1757387446699,-481.44714224,0.00013698,2]
[384408811,1757387446710,-280.173572,0.00013698,2]
[384408812,1757387446719,-280.173572,0.00013698,2]
[384408813,1757387446729,-280.173572,0.00013698,2]
[384408814,1757387446741,-480.0,0.00013698,2]